bitfinex/quotes_BTCUSD_20250412
["timestamp","ask_amount","ask_price","bid_price","bid_amount"]
[1744468362818,0.234869,85154.0,85128.0,0.001]
[1744468363042,0.011742,85159.0,85127.0,0.011747]
[1744468363216,0.011742,85159.0,85121.0,0.34]
[1744468363217,0.011739,85182.0,85158.0,0.12084154]
[1744468363417,0.0104226,85171.0,85167.0,0.12084154]
[1744468363821,0.011741,85170.0,85167.0,0.12084154]
[1744468364020,0.16,85168.0,85167.0,0.12084154]
[1744468364645,0.16,85168.0,85167.0,0.46084154]
[1744468365052,0.16,85168.0,85167.0,0.12084154]
[1744468365249,0.0125226,85189.0,85169.0,0.34]
[1744468365472,0.0125226,85189.0,85168.0,0.001]
[1744468365473,0.0125226,85189.0,85188.0,0.12084154]
[1744468365672,0.1725226,85189.0,85188.0,0.12084154]
[1744468365874,0.2125226,85189.0,85188.0,0.12084154]
[1744468366316,0.01174,85173.0,85167.0,0.001]
[1744468366518,0.234826,85170.0,85168.0,0.12084154]
[1744468366670,0.010741,85171.0,85168.0,0.12084154]
[1744468366873,0.16,85169.0,85168.0,0.12084154]
[1744468367588,0.28,85169.0,85168.0,0.12084154]
[1744468368328,0.16,85169.0,85168.0,0.12084154]
[1744468368481,0.161,85169.0,85168.0,0.12084154]
[1744468368680,0.16,85169.0,85168.0,0.12084154]
[1744468369693,0.16,85169.0,85168.0,0.12184154]
[1744468370515,0.16,85169.0,85168.0,0.12084154]
[1744468373176,0.011741,85171.0,85168.0,0.12084154]
[1744468373381,0.246564,85171.0,85168.0,0.12084154]
[1744468373581,0.011741,85171.0,85168.0,0.12084154]
[1744468374169,0.15,85169.0,85168.0,0.12084154]
[1744468375263,0.01174,85173.0,85168.0,0.12084154]
[1744468375466,0.0469,85175.0,85168.0,0.12084154]
[1744468375665,0.01174,85173.0,85168.0,0.12084154]
[1744468375965,0.0469,85175.0,85168.0,0.12084154]
[1744468376199,0.09,85169.0,85168.0,0.12184154]
[1744468376598,0.09,85169.0,85168.0,0.12084154]
[1744468376804,0.09,85169.0,85168.0,0.12184154]
[1744468376983,0.04,85169.0,85168.0,0.12184154]
[1744468377498,0.04,85169.0,85168.0,0.12084154]
[1744468377683,0.04,85169.0,85168.0,0.12184154]
[1744468378193,0.0469,85175.0,85168.0,0.35667054]
[1744468378490,0.011736,85201.0,85182.0,0.011739]
[1744468378491,0.0486,85201.0,85182.0,0.011739]
[1744468378631,0.0121592,85199.0,85188.0,0.12084154]
[1744468378833,0.0004222,85199.0,85188.0,0.12084154]
[1744468379387,0.0525226,85189.0,85188.0,0.12084154]
[1744468379850,0.05298816,85189.0,85188.0,0.12084154]
[1744468380248,0.05298816,85189.0,85188.0,0.12184154]
[1744468380701,0.05298816,85189.0,85188.0,0.001]
[1744468380873,0.19949216,85191.0,85188.0,0.001]
[1744468381075,0.19949216,85191.0,85188.0,0.00110476]
[1744468381264,0.234772,85189.0,85188.0,0.00110476]
[1744468381871,0.234772,85189.0,85169.0,0.006119]
[1744468381872,0.254772,85189.0,85169.0,0.006119]
[1744468382069,0.011739,85179.0,85170.0,0.12084154]
[1744468382272,0.01074,85173.0,85170.0,0.12084154]
[1744468382476,0.245556,85173.0,85170.0,0.12084154]
[1744468383491,0.245556,85173.0,85169.0,0.00758456]
[1744468383492,0.234824,85170.0,85169.0,0.00658456]
[1744468383691,0.234824,85170.0,85125.0,0.01134351]
[1744468383692,0.011742,85158.0,85138.0,0.28852455]
[1744468383889,0.011743,85156.0,85142.0,0.12084154]
[1744468384094,0.011743,85154.0,85142.0,0.12084154]
[1744468384346,0.246637,85145.0,85142.0,0.12084154]
[1744468384549,0.011745,85141.0,85138.0,0.05375085]
[1744468384721,0.011745,85141.0,85138.0,0.0001383]
[1744468384956,0.011745,85141.0,85139.0,0.12084154]
[1744468385164,0.060144,85144.0,85139.0,0.12084154]
[1744468385165,0.011745,85142.0,85139.0,0.12084154]
[1744468385310,0.234904,85141.0,85139.0,0.12084154]
[1744468385493,0.244904,85141.0,85139.0,0.12084154]
[1744468386314,0.244904,85141.0,85139.0,0.10918877]
[1744468386516,0.256649,85141.0,85138.0,0.0001383]
[1744468386776,0.011746,85130.0,85115.0,0.196262]
[1744468387117,0.011746,85130.0,85118.0,0.12084154]
[1744468387118,0.011746,85129.0,85118.0,0.12084154]
[1744468387233,0.011747,85121.0,85118.0,0.12084154]
[1744468387443,0.011747,85121.0,85115.0,0.00013865]
[1744468387444,0.234973,85116.0,85115.0,0.00013865]
[1744468387654,0.234973,85116.0,85084.0,0.01129035]
[1744468387655,0.011751,85093.0,85084.0,0.01129035]
[1744468387859,0.011751,85095.0,85085.0,0.12084154]
[1744468388077,0.011752,85091.0,85085.0,0.12084154]
[1744468388252,0.0485,85096.0,85085.0,0.12084154]
[1744468388448,0.0485,85096.0,85086.0,0.00235029]
[1744468388648,0.0485,85096.0,85087.0,0.12084154]
[1744468388894,0.0485,85096.0,85088.0,0.00235013]
[1744468389091,0.0485,85096.0,85089.0,0.12084154]
[1744468389092,0.011752,85090.0,85089.0,0.12084154]
[1744468389406,0.235059,85085.0,85084.0,0.00046498]
[1744468389563,0.30589985,85085.0,85084.0,0.00046498]
[1744468389747,0.24960485,85083.0,85056.0,0.20212]
[1744468389951,0.011755,85064.0,85052.0,0.05361255]
[1744468390177,0.011755,85064.0,85053.0,0.12084154]
[1744468390178,0.235119,85063.0,85053.0,0.12084154]
[1744468390376,0.011753,85078.0,85056.0,0.12084154]
[1744468390610,0.011755,85065.0,85056.0,0.12084154]
[1744468390788,0.011755,85067.0,85057.0,0.00235094]
[1744468390993,0.011756,85061.0,85058.0,0.12084154]
[1744468391203,0.281147,85053.0,85052.0,0.05361255]
[1744468391435,0.281147,85053.0,85044.0,0.0008444]
[1744468391436,0.235169,85045.0,85044.0,0.0008444]
[1744468391637,0.235169,85045.0,85035.0,0.05361255]
[1744468391638,0.235194,85036.0,85035.0,0.05361255]
[1744468391840,0.246932,85044.0,85035.0,0.17445409]
[1744468391841,0.011758,85044.0,85035.0,0.17445409]
[1744468391979,0.0009991,85069.0,85035.0,0.17445409]
[1744468391980,0.011757,85051.0,85036.0,0.12084154]
[1744468392176,0.011758,85045.0,85036.0,0.12319331]
[1744468392381,0.011757,85051.0,85036.0,0.12319331]
[1744468392589,0.011758,85047.0,85036.0,0.12319331]
[1744468392805,0.011758,85047.0,85036.0,0.12084154]
[1744468392806,0.011759,85041.0,85036.0,0.12084154]
[1744468393041,0.011758,85047.0,85036.0,0.12084154]
[1744468393305,0.235188,85038.0,85036.0,0.12084154]
[1744468393658,0.246947,85038.0,85035.0,0.05375128]
[1744468394498,0.247947,85038.0,85035.0,0.05375128]
[1744468394864,0.24422077,85038.0,85035.0,0.05375128]
[1744468395062,0.012759,85038.0,85035.0,0.05375128]
[1744468395287,0.247948,85038.0,85035.0,0.05375128]
[1744468395675,0.247948,85038.0,85035.0,0.00013873]
[1744468396019,0.267948,85038.0,85035.0,0.00013873]
[1744468396221,0.001,85038.0,85035.0,0.12098027]
[1744468396433,0.001,85038.0,85036.0,0.12084154]
[1744468396677,0.001,85038.0,85037.0,0.0023518]
[1744468396848,0.001,85038.0,85037.0,0.12319334]
[1744468397389,0.011758,85046.0,85037.0,0.12319334]
[1744468397586,0.011758,85044.0,85038.0,0.52904154]
[1744468397798,0.235159,85049.0,85038.0,0.52904154]
[1744468397799,0.28185,85052.0,85038.0,0.52904154]
[1744468398008,0.011757,85050.0,85039.0,0.4082]
[1744468398206,0.011258,85045.0,85040.0,0.12084154]
[1744468398480,0.011758,85043.0,85040.0,0.12084154]
[1744468398623,0.011758,85044.0,85040.0,0.12084154]
[1744468398825,0.246429,85045.0,85040.0,0.12084154]
[1744468398826,0.011258,85045.0,85040.0,0.12084154]
[1744468399277,0.011758,85044.0,85040.0,0.12084154]
[1744468399479,0.011758,85043.0,85040.0,0.12084154]
[1744468399709,0.235194,85036.0,85035.0,0.00013873]
[1744468400034,0.246949,85038.0,85035.0,0.00013873]
[1744468400249,0.001,85044.0,85036.0,0.12084154]
[1744468400449,0.001,85044.0,85037.0,0.00235162]
[1744468400666,0.001,85044.0,85038.0,0.12084154]
[1744468401099,0.011758,85045.0,85038.0,0.12084154]
[1744468401511,0.011758,85046.0,85038.0,0.12084154]
[1744468401915,0.011758,85043.0,85038.0,0.12084154]
[1744468402126,0.057757,85053.0,85039.0,0.00235156]
[1744468402329,0.011757,85051.0,85040.0,0.12084154]
[1744468402489,0.011757,85051.0,85041.0,0.00235144]
[1744468402699,0.057757,85053.0,85049.0,0.011757]
[1744468402700,0.046,85053.0,85049.0,0.011757]
[1744468402899,0.046,85053.0,85050.0,0.12319276]
[1744468403239,0.046,85053.0,85050.0,0.12084154]
[1744468403538,0.001,85051.0,85050.0,0.12084154]
[1744468405353,0.235172,85044.0,85043.0,0.05]
[1744468405569,0.235172,85044.0,85043.0,0.17084154]
[1744468405909,0.245172,85044.0,85043.0,0.12084154]
[1744468406311,0.01,85044.0,85036.0,1.40992]
[1744468406515,0.235171,85045.0,85037.0,0.12319326]
[1744468406516,0.011758,85043.0,85037.0,0.12319326]
[1744468406714,0.015758,85044.0,85037.0,0.12084154]
[1744468407069,0.011759,85040.0,85037.0,0.12084154]
[1744468407506,0.004,85044.0,85037.0,0.12084154]
[1744468407507,0.011758,85043.0,85037.0,0.12084154]
[1744468407688,0.011759,85040.0,85037.0,0.12084154]
[1744468407899,0.011759,85041.0,85037.0,0.12084154]
[1744468408144,0.242174,85044.0,85037.0,0.12084154]
[1744468408145,0.008,85044.0,85037.0,0.12084154]
[1744468408316,0.019758,85044.0,85037.0,0.12084154]
[1744468408522,0.014758,85044.0,85037.0,0.12084154]
[1744468408678,0.011758,85047.0,85037.0,0.12084154]
[1744468408876,0.235187,85039.0,85037.0,0.12084154]
[1744468409564,0.011758,85047.0,85037.0,0.12084154]
[1744468409762,0.011758,85044.0,85038.0,0.0023516]
[1744468409909,0.011758,85043.0,85039.0,0.12084154]
[1744468410106,0.011759,85041.0,85039.0,0.12084154]
[1744468410344,0.011758,85042.0,85039.0,0.12084154]
[1744468410517,0.246937,85042.0,85039.0,0.12084154]
[1744468410752,0.011758,85044.0,85039.0,0.12084154]
[1744468410954,0.235181,85041.0,85039.0,0.12084154]
[1744468411551,0.235157,85050.0,85039.0,0.12084154]
[1744468411768,0.011758,85042.0,85039.0,0.12084154]
[1744468411970,0.246931,85044.0,85039.0,0.12084154]
[1744468412327,0.235181,85041.0,85040.0,0.4082]
[1744468412531,0.011758,85043.0,85040.0,0.52904154]
[1744468412652,0.246904,85054.0,85041.0,0.12084154]
[1744468412890,0.011757,85050.0,85041.0,0.12319318]
[1744468413091,0.011758,85047.0,85041.0,0.12084154]
[1744468414061,0.011756,85062.0,85044.0,0.011758]
[1744468414309,0.011756,85056.0,85044.0,0.12084154]
[1744468414481,0.246889,85059.0,85044.0,0.12084154]
[1744468414639,0.047,85053.0,85044.0,0.12084154]
[1744468415064,0.046,85053.0,85044.0,0.12084154]
[1744468415474,0.059252,85085.0,85064.0,0.235116]
[1744468415679,0.059252,85085.0,85065.0,0.73931226]
[1744468415680,0.011754,85076.0,85065.0,0.73931226]
[1744468415875,0.011754,85076.0,85065.0,0.73696154]
[1744468416085,0.011751,85095.0,85068.0,0.011755]
[1744468416277,0.1,85118.0,85065.0,0.73696154]
[1744468416278,0.01175,85101.0,85081.0,0.246823]
[1744468416500,0.0465,85102.0,85084.0,0.235061]
[1744468416661,0.0465,85102.0,85086.0,0.35589754]
[1744468417007,0.057448,85114.0,85086.0,1.10409754]
[1744468417008,0.0922,85114.0,85086.0,1.10409754]
[1744468417212,0.0922,85114.0,85095.0,0.011751]
[1744468417213,0.103948,85114.0,85095.0,0.011751]
[1744468417386,0.011749,85111.0,85096.0,0.97198954]
[1744468417592,0.234981,85113.0,85096.0,0.97198954]
[1744468417780,0.011749,85108.0,85096.0,0.73696154]
[1744468418115,0.01175,85102.0,85096.0,0.73696154]
[1744468418350,0.011753,85083.0,85065.0,0.011755]
[1744468418558,0.011754,85072.0,85059.0,1.21012]
[1744468418767,0.246846,85073.0,85060.0,0.32872154]
[1744468418978,0.011755,85069.0,85060.0,0.32872154]
[1744468419152,0.011754,85071.0,85060.0,0.32872154]
[1744468419360,0.011754,85072.0,85060.0,0.32872154]
[1744468419562,0.011754,85073.0,85060.0,0.32872154]
[1744468419563,0.011755,85068.0,85060.0,0.32872154]
[1744468419708,0.235122,85062.0,85061.0,0.4082]
[1744468419909,0.235122,85062.0,85060.0,0.00013873]
[1744468420950,0.255122,85062.0,85060.0,0.00013873]
[1744468421705,0.235122,85062.0,85060.0,0.12098027]
[1744468421890,0.235122,85062.0,85061.0,0.12084154]
[1744468421891,0.237122,85062.0,85061.0,0.12084154]
[1744468422204,0.002,85062.0,85061.0,0.52904154]
[1744468422849,0.238122,85062.0,85061.0,0.52904154]
[1744468423255,0.238122,85062.0,85061.0,0.4082]
[1744468423455,0.238122,85062.0,85060.0,0.00013873]
[1744468423866,0.235122,85062.0,85060.0,0.00013873]
[1744468424218,0.236122,85062.0,85060.0,0.00013873]
[1744468424448,0.255122,85062.0,85060.0,0.00013873]
[1744468424863,0.257122,85062.0,85060.0,0.00013873]
[1744468425465,0.0481,85061.0,85060.0,0.00013873]
[1744468425663,0.0681,85061.0,85060.0,0.00013873]
[1744468426972,0.235191,85037.0,85036.0,0.2]
[1744468427176,0.281991,85037.0,85036.0,0.20013876]
[1744468427378,0.321991,85037.0,85036.0,0.20013876]
[1744468428234,0.321991,85037.0,85027.0,0.0008444]
[1744468428235,0.235216,85028.0,85027.0,0.0008444]
[1744468428433,0.18576006,85028.0,85027.0,0.00098318]
[1744468429408,0.19670207,85028.0,85027.0,0.00098318]
[1744468429605,0.19770207,85028.0,85027.0,0.00098318]
[1744468430343,0.18676006,85028.0,85027.0,0.00098318]
[1744468430543,0.20130091,85028.0,85027.0,0.00098318]
[1744468430947,0.18676006,85028.0,85027.0,0.00098318]
[1744468431348,0.21162796,85028.0,85027.0,0.00098318]
[1744468432494,0.22616881,85028.0,85027.0,0.00098318]
[1744468432924,0.23709735,85028.0,85027.0,1.8e-07]
[1744468433251,0.23709735,85028.0,85021.0,0.0008436]
[1744468433252,0.235233,85022.0,85021.0,6e-07]
[1744468433427,0.3871009,85022.0,85021.0,0.00013952]
[1744468434061,0.39802944,85022.0,85021.0,0.00013952]
[1744468434458,0.37616154,85022.0,85021.0,0.00013952]
[1744468434798,0.39070239,85022.0,85021.0,0.00013952]
[1744468435011,0.37616154,85022.0,85021.0,0.00013952]
[1744468435236,0.367233,85022.0,85021.0,0.00013952]
[1744468435449,0.368233,85022.0,85021.0,0.00013952]
[1744468437463,0.360233,85022.0,85021.0,0.00013952]
[1744468437664,0.133,85022.0,85021.0,0.00013952]
[1744468439076,0.05974048,85021.0,85004.0,0.2097236]
[1744468439219,0.235259,85013.0,85005.0,0.12084154]
[1744468439471,0.011763,85011.0,85005.0,0.12084154]
[1744468439634,0.011763,85008.0,85005.0,0.12084154]
[1744468440423,0.011763,85009.0,85005.0,0.12084154]
[1744468440625,0.011763,85008.0,85005.0,0.12084154]
[1744468440824,0.235274,85007.0,85005.0,0.12084154]
[1744468441054,0.23525,85016.0,85005.0,0.12084154]
[1744468441218,0.011762,85019.0,85006.0,0.011763]
[1744468441420,0.011762,85017.0,85007.0,0.13495695]
[1744468441660,0.07150148,85021.0,85007.0,0.13495695]
[1744468441661,0.05974048,85021.0,85012.0,0.011763]
[1744468441835,0.05974048,85021.0,85013.0,0.12319385]
[1744468442040,0.05974048,85021.0,85013.0,0.12084154]
[1744468442041,0.235255,85014.0,85013.0,0.12084154]
[1744468442297,0.23528,85005.0,84980.0,0.01144177]
[1744468442416,0.25528,85005.0,85004.0,0.33070417]
[1744468442861,0.25528,85005.0,85004.0,0.12182417]
[1744468443062,0.23528,85005.0,85004.0,0.12182417]
[1744468443715,0.235272,85008.0,85004.0,0.12182417]
[1744468443716,0.011763,85008.0,85004.0,0.12182417]
[1744468443872,0.011763,85010.0,85005.0,0.12084154]
[1744468444228,0.011761,85020.0,85008.0,0.011763]
[1744468444356,0.011761,85020.0,85009.0,0.52904154]
[1744468444357,0.011762,85018.0,85009.0,0.52904154]
[1744468444551,0.001,85014.0,85009.0,0.52904154]
[1744468445012,0.011762,85015.0,85009.0,0.52904154]
[1744468445211,0.011762,85016.0,85009.0,0.52904154]
[1744468445387,0.011763,85012.0,85009.0,0.52904154]
[1744468445592,0.257024,85012.0,85009.0,0.52904154]
[1744468445794,0.235266,85010.0,85009.0,0.52904154]
[1744468445977,0.247024,85012.0,85009.0,0.52904154]
[1744468446318,0.235266,85010.0,85009.0,0.52904154]
[1744468446496,0.235277,85006.0,85005.0,0.001]
[1744468446700,0.255277,85006.0,85005.0,0.001]
[1744468446900,0.255277,85006.0,85004.0,0.00098263]
[1744468447846,0.235277,85006.0,85005.0,0.001]
[1744468448179,0.011763,85010.0,85005.0,0.12084154]
[1744468448308,0.011763,85007.0,85006.0,0.12084154]
[1744468448952,0.011762,85014.0,85006.0,0.13260454]
[1744468449257,0.011763,85010.0,85006.0,0.12084154]
[1744468449467,0.011763,85009.0,85006.0,0.12084154]
[1744468449701,0.247034,85009.0,85006.0,0.12084154]
[1744468449856,0.235274,85007.0,85005.0,0.002]
[1744468450258,0.235274,85007.0,85005.0,0.001]
[1744468450595,0.011762,85018.0,85007.0,0.011763]
[1744468450802,0.011761,85025.0,85013.0,0.011762]
[1744468451006,0.246991,85023.0,85014.0,0.12084154]
[1744468451179,0.011761,85025.0,85016.0,0.011762]
[1744468451384,0.01176,85029.0,85018.0,0.011762]
[1744468451586,0.01176,85027.0,85019.0,0.12084154]
[1744468451793,0.01176,85028.0,85019.0,0.12084154]
[1744468452196,0.235197,85036.0,85019.0,0.12084154]
[1744468452197,0.06074048,85021.0,85020.0,0.12084154]
[1744468452351,0.05994048,85021.0,85020.0,0.12051952]
[1744468452706,0.05894048,85021.0,85020.0,0.12051952]
[1744468453221,0.05994048,85021.0,85020.0,0.12051952]
[1744468453435,0.06294048,85021.0,85020.0,0.12051952]
[1744468453871,0.29817648,85021.0,85020.0,0.12151952]
[1744468454267,0.29817648,85021.0,85020.0,0.33043952]
[1744468454687,0.29717648,85021.0,85020.0,0.33043952]
[1744468455057,0.29717648,85021.0,85020.0,0.33143952]
[1744468455488,0.29717648,85021.0,85020.0,0.002]
[1744468455649,0.29717648,85021.0,85020.0,0.21092]
[1744468456569,0.29717648,85021.0,85020.0,0.001]
[1744468456787,0.011763,85012.0,85004.0,0.00098263]
[1744468457000,0.247031,85010.0,85005.0,0.32976154]
[1744468457213,0.011763,85008.0,85005.0,0.32976154]
[1744468457385,0.011763,85008.0,85005.0,0.12084154]
[1744468457583,0.011763,85008.0,85006.0,0.20892]
[1744468457810,0.011763,85008.0,85007.0,0.12084154]
[1744468458021,0.247031,85010.0,85007.0,0.12084154]
[1744468458605,0.247031,85010.0,85008.0,0.20412]
[1744468458811,0.247031,85010.0,85009.0,0.12084154]
[1744468459518,0.247025,85012.0,85009.0,0.12084154]
[1744468459679,0.235266,85011.0,85009.0,0.12084154]
[1744468459882,0.011763,85012.0,85009.0,0.12084154]
[1744468460317,0.247026,85012.0,85009.0,0.12084154]
[1744468460737,0.235266,85011.0,85009.0,0.12084154]
[1744468461680,0.23528,85005.0,85004.0,0.00098263]
[1744468461880,0.23528,85005.0,85004.0,0.32598417]
[1744468462128,0.235255,85015.0,85004.0,0.12182417]
[1744468462300,0.011763,85011.0,85005.0,0.32735407]
[1744468462508,0.011763,85012.0,85005.0,0.32500154]
[1744468462679,0.011763,85011.0,85005.0,0.32500154]
[1744468462883,0.011762,85013.0,85005.0,0.32500154]
[1744468462884,0.011763,85012.0,85005.0,0.32500154]
[1744468463337,0.295194,85023.0,85014.0,0.011762]
[1744468463640,0.01176,85028.0,85018.0,0.011762]
[1744468463949,0.246977,85028.0,85019.0,0.12084154]
[1744468464237,0.011761,85025.0,85019.0,0.12084154]
[1744468464863,0.011761,85026.0,85019.0,0.12084154]
[1744468465031,0.05994048,85021.0,85019.0,0.12084154]
[1744468465364,0.06394048,85021.0,85020.0,1.10427954]
[1744468465708,0.06394048,85021.0,85020.0,1.13662008]
[1744468465915,0.246914,85050.0,85038.0,0.011759]
[1744468466154,0.011758,85047.0,85039.0,0.46510106]
[1744468466334,0.011758,85043.0,85039.0,0.46510106]
[1744468466528,0.011758,85042.0,85039.0,0.46510106]
[1744468466763,0.235183,85040.0,85039.0,0.46510106]
[1744468466928,0.235183,85040.0,85039.0,0.34425952]
[1744468467107,0.235183,85040.0,85039.0,0.34439855]
[1744468467845,0.239183,85040.0,85039.0,0.34439855]
[1744468468664,0.249183,85040.0,85039.0,0.00013903]
[1744468468865,0.296083,85040.0,85039.0,0.00013903]
[1744468469228,0.341383,85040.0,85039.0,0.00013903]
[1744468470170,0.337383,85040.0,85039.0,0.00013903]
[1744468470956,0.35192385,85040.0,85039.0,3e-08]
[1744468471148,0.35392385,85040.0,85039.0,3e-08]
[1744468471573,0.35192385,85040.0,85039.0,3e-08]
[1744468471974,0.35392385,85040.0,85039.0,3e-08]
[1744468472198,0.339383,85040.0,85039.0,3e-08]
[1744468472576,0.35392385,85040.0,85039.0,3e-08]
[1744468472971,0.36092385,85040.0,85039.0,0.00100003]
[1744468473176,0.36092385,85040.0,85039.0,3e-08]
[1744468473818,0.48176539,85040.0,85039.0,3e-08]
[1744468474022,0.48976449,85040.0,85039.0,3e-08]
[1744468474320,0.011762,85016.0,85013.0,0.20412]
[1744468474519,0.235252,85015.0,85013.0,0.20425906]
[1744468475474,0.235252,85015.0,85013.0,0.00013906]
[1744468475674,0.0946,85014.0,85013.0,0.00013906]
[1744468477171,0.1076,85014.0,85013.0,0.00013906]
[1744468477950,0.1096,85014.0,85013.0,0.00013906]
[1744468478901,0.24598149,85014.0,85013.0,6e-08]
[1744468479141,0.23528,85005.0,85004.0,6.6e-07]
[1744468479353,0.43982085,85005.0,85004.0,0.00013916]
[1744468479554,0.235327,84988.0,84986.0,7.1e-07]
[1744468479955,0.23533,84987.0,84986.0,0.00013991]
[1744468480750,0.235327,84988.0,84986.0,0.00013991]
[1744468480964,0.239327,84988.0,84986.0,0.00013991]
[1744468482196,0.237327,84988.0,84986.0,0.00013991]
[1744468482597,0.003,84987.0,84986.0,0.00013991]
[1744468482978,0.223227,84988.0,84986.0,0.00013991]
[1744468484127,0.221227,84988.0,84986.0,0.00013991]
[1744468484279,0.002,84987.0,84986.0,0.00013991]
[1744468484680,0.221227,84988.0,84986.0,0.00013991]
[1744468485208,0.223227,84988.0,84986.0,0.00013991]
[1744468485511,0.220227,84988.0,84986.0,0.00013991]
[1744468485672,0.003,84987.0,84986.0,0.00013991]
[1744468485868,0.220227,84988.0,84986.0,0.00013991]
[1744468486215,0.223227,84988.0,84986.0,0.00013991]
[1744468486411,0.220227,84988.0,84986.0,0.00013991]
[1744468486788,0.002,84987.0,84986.0,0.00013991]
[1744468487314,0.012,84987.0,84986.0,0.00013991]
[1744468487491,0.014,84987.0,84986.0,0.00013991]
[1744468488300,0.012,84987.0,84986.0,0.00013991]
[1744468488617,0.013,84987.0,84986.0,0.00013991]
[1744468488847,0.02754085,84987.0,84986.0,0.00013991]
[1744468488981,0.03054085,84987.0,84986.0,0.00013991]
[1744468489184,0.02754085,84987.0,84986.0,0.00013991]
[1744468489567,0.03254085,84987.0,84986.0,0.00013991]
[1744468490084,0.235324,84989.0,84986.0,0.00013991]
[1744468490271,0.003,84987.0,84986.0,0.00013991]
[1744468490923,0.235327,84988.0,84986.0,0.00013991]
[1744468492044,0.002,84987.0,84986.0,0.00013991]
[1744468492605,0.002,84987.0,84986.0,1.04292635]
[1744468492803,0.002,84987.0,84986.0,1.04057297]
[1744468493207,0.235263,85012.0,85003.0,0.011764]
[1744468493416,0.011763,85007.0,85004.0,0.12084154]
[1744468493646,0.011763,85011.0,85004.0,0.12084154]
[1744468493851,0.011762,85013.0,85006.0,0.011763]
[1744468494023,0.011762,85013.0,85007.0,0.12084154]
[1744468494024,0.011763,85011.0,85007.0,0.12084154]
[1744468494223,0.011762,85013.0,85008.0,0.011763]
[1744468494452,0.235252,85015.0,85005.0,0.011764]
[1744468494453,0.001,85012.0,85009.0,0.12084154]
[1744468494782,0.012763,85012.0,85009.0,0.12084154]
[1744468494989,0.011763,85012.0,85009.0,0.12084154]
[1744468495130,0.247049,85004.0,84987.0,0.351766]
[1744468495329,0.235285,85003.0,84987.0,0.34]
[1744468495529,0.235327,84988.0,84980.0,0.20252]
[1744468495750,0.235327,84988.0,84972.0,1.211]
[1744468495954,0.235327,84988.0,84976.0,0.2033644]
[1744468496194,0.235327,84988.0,84980.0,0.011767]
[1744468496350,0.235327,84988.0,84987.0,0.12084154]
[1744468497449,0.235327,84988.0,84987.0,0.12184154]
[1744468497651,0.235301,84998.0,84991.0,0.011765]
[1744468497855,0.235313,84994.0,84992.0,0.12084154]
[1744468499285,0.235313,84994.0,84992.0,0.12284154]
[1744468500076,0.235313,84994.0,84992.0,0.002]
[1744468500885,0.235301,84998.0,84993.0,0.12084154]
[1744468501091,0.23531,84995.0,84993.0,0.12084154]
[1744468502131,0.23533,84987.0,84985.0,0.000846]
[1744468503227,0.235316,84992.0,84986.0,0.13274745]
[1744468503431,0.247093,84989.0,84987.0,0.12084154]
[1744468503644,0.011765,84991.0,84987.0,0.12084154]
[1744468503842,0.011766,84990.0,84987.0,0.12084154]
[1744468504045,0.235324,84989.0,84987.0,0.12084154]
[1744468504443,0.011765,84991.0,84988.0,0.68425952]
[1744468504669,0.011764,85000.0,84995.0,0.011765]
[1744468505027,0.235324,84989.0,84987.0,0.006]
[1744468505146,0.235388,84966.0,84965.0,2e-07]
[1744468505350,0.42992885,84966.0,84965.0,2e-07]
[1744468505548,0.235388,84966.0,84965.0,2e-07]
[1744468505749,0.011768,84971.0,84965.0,2e-07]
[1744468505750,0.011767,84977.0,84966.0,0.011769]
[1744468505950,0.011768,84970.0,84967.0,0.12084154]
[1744468506277,0.011767,84977.0,84967.0,0.12084154]
[1744468506455,0.011767,84977.0,84970.0,0.235376]
[1744468506661,0.235371,84972.0,84971.0,0.12084154]
[1744468507464,0.247134,84974.0,84971.0,0.12084154]
[1744468507670,0.235371,84972.0,84971.0,0.12084154]
[1744468508274,0.235382,84968.0,84967.0,0.54252]
[1744468508496,0.235382,84968.0,84967.0,0.32336154]
[1744468508701,0.235382,84968.0,84967.0,0.20252]
[1744468509087,0.235388,84966.0,84965.0,0.00046454]
[1744468510346,0.24992885,84966.0,84965.0,5.4e-07]
[1744468510792,0.24992885,84966.0,84954.0,8e-05]
[1744468510793,0.24995885,84955.0,84954.0,5.4e-07]
[1744468511003,0.01454085,84952.0,84951.0,7.4e-07]
[1744468511370,0.02454085,84952.0,84951.0,7.4e-07]
[1744468512453,0.24996985,84951.0,84950.0,3.4e-07]
[1744468512638,0.58998685,84945.0,84944.0,3.4e-07]
[1744468512836,0.01454085,84935.0,84934.0,5.4e-07]
[1744468513041,0.59003385,84928.0,84927.0,3.4e-07]
[1744468513285,0.23551,84922.0,84921.0,2.2e-07]
[1744468513480,0.70785085,84922.0,84921.0,2.2e-07]
[1744468513863,0.235562,84903.0,84902.0,0.20256]
[1744468514102,0.235562,84903.0,84902.0,0.12084154]
[1744468514943,0.235543,84910.0,84905.0,0.011777]
[1744468514944,0.011777,84910.0,84905.0,0.011777]
[1744468515144,0.235541,84911.0,84906.0,0.12084154]
[1744468515416,0.011777,84911.0,84906.0,0.36817154]
[1744468515650,0.011777,84911.0,84907.0,0.011777]
[1744468515829,0.011776,84912.0,84908.0,0.13261854]
[1744468515978,0.001,84910.0,84908.0,0.12084154]
[1744468516383,0.011776,84917.0,84910.0,0.011777]
[1744468516585,0.235491,84929.0,84918.0,0.23552]
[1744468516586,0.247281,84924.0,84918.0,0.23552]
[1744468516792,0.01223947,84922.0,84919.0,0.12084154]
[1744468517017,0.235513,84921.0,84919.0,0.12084154]
[1744468517212,0.011776,84918.0,84910.0,0.20264]
[1744468517415,0.011776,84916.0,84911.0,0.3705137]
[1744468517636,0.011776,84916.0,84912.0,0.011776]
[1744468517837,0.011776,84916.0,84913.0,0.12084154]
[1744468518230,0.011776,84916.0,84913.0,0.10427854]
[1744468518884,0.235475,84935.0,84921.0,0.235513]
[1744468519088,0.011775,84925.0,84921.0,0.35635454]
[1744468519234,0.011775,84924.0,84921.0,0.12084154]
[1744468519988,0.011774,84927.0,84921.0,0.12084154]
[1744468520164,0.235463,84940.0,84921.0,0.80745598]
[1744468520368,0.011774,84932.0,84921.0,0.80510106]
[1744468521048,0.011774,84932.0,84921.0,0.80810106]